[Event "FIDE Zonal 2.5-W 2019"]
[Site "Montevideo"]
[Date "2019.04.16"]
[Round "5.4"]
[White "Brizzi, Milagros Tatiana"]
[Black "Gomez Barrera, Javiera Belen"]
[Result "0-1"]
[ECO "C45"]
[WhiteElo "2126"]
[BlackElo "2016"]
[Annotator "NA"]
[PlyCount "136"]
[EventDate "2019.04.13"]
[EventType "swiss"]
[EventCountry "URU"]
[SourceTitle "playchess.com"]
[Source "ChessBase"]
[SourceQuality "1"]
[TimeControl "40/5400+30:1800+30"]

1. e4 e5 {[%emt 0:04:31]} 2. Nf3 {[%emt 0:00:00]} Nc6 {[%emt 0:00:06]} 3. d4 {[%emt 0:00:08]} exd4 {[%emt 0:00:07]} 4. Nxd4 {[%emt 0:00:11]} Bc5 {[%emt 0:00:07]} 5. Be3 {[%emt 0:00:12]} Qf6 {[%emt 0:00:38]} 6. c3 {[%emt 0:00:11]} Nge7 {[%emt 0:00:39]} 7. Bc4 {[%emt 0:00:21]} O-O {[%emt 0:00:15]} 8. O-O {[%emt 0:01:21]} b6 {[%emt 0:00:32]} 9. Nc2 {[%emt 0:04:28]} Ne5 {[%emt 0:00:41]} 10. Be2 {[%emt 0:01:18]} Bb7 {[%emt 0:05:43]} 11. Nd2 {[%emt 0:08:55]} Bxe3 {[%emt 0:06:56]} 12. Nxe3 {[%emt 0:00:41]} N5g6 {[%emt 0:00:17]} 13. g3 {[%emt 0:07:14]} d5 {[%emt 0:06:41]} 14. Bf3 {[%emt 0:04:34]} Rad8 {[%emt 0:12:46]} 15. Bg2 {[%emt 0:14:31]} dxe4 {[%emt 0:06:34]} 16. Qc2 {[%emt 0:00:15]} Ne5 {[%emt 0:03:50]} 17. Nxe4 {[%emt 0:02:06]} Nf3+ {[%emt 0:00:40]} 18. Kh1 {[%emt 0:06:48]} Bxe4 {[%emt 0:00:58]} 19. Qxe4 {[%emt 0:00:22]} Nd2 {[%emt 0:00:13]} 20. Qc2 {[%emt 0:10:22]} Nxf1 {[%emt 0:00:12]} 21. Rxf1 {[%emt 0:00:04]} Rfe8 {[%emt 0:06:08]} 22. Kg1 {[%emt 0:02:02]} h6 {[%emt 0:03:14]} 23. a3 {[%emt 0:03:35]} Ng6 {[%emt 0:08:35]} 24. Qa4 {[%emt 0:02:21]} a5 {[%emt 0:04:42]} 25. Nd5 {[%emt 0:03:30]} Qd6 {[%emt 0:05:39]} 26. b4 {[%emt 0:01:49]} axb4 {[%emt 0:08:54]} 27. axb4 {[%emt 0:03:32]} Ne7 {[%emt 0:04:01]} 28. Ne3 {[%emt 0:01:47]} Qe5 {[%emt 0:03:10]} 29. c4 {[%emt 0:02:25]} Nf5 {[%emt 0:01:12]} 30. Nd5 {[%emt 0:01:16]} Nd4 {[%emt 0:01:28]} 31. b5 {[%emt 0:03:31]} Ne2+ {[%emt 0:02:01]} 32. Kh1 {[%emt 0:00:19]} Nc3 {[%emt 0:00:31]} 33. Qb3 {[%emt 0:10:16]} Nxd5 {[%emt 0:01:40]} 34. Bxd5 {[%emt 0:00:04]} Rd6 {[%emt 0:02:16]} 35. Kg1 {[%emt 0:01:30]} Rf6 {[%emt 0:00:33]} 36. Qd3 {[%emt 0:02:18]} g6 {[%emt 0:00:50]} 37. Rd1 {[%emt 0:02:41]} Kg7 {[%emt 0:00:25]} 38. Rf1 {[%emt 0:01:08]} h5 {[%emt 0:00:27]} 39. f4 {[%emt 0:00:39]} Qe3+ {[%emt 0:00:36]} 40. Qxe3 {[%emt 0:00:10]} Rxe3 {[%emt 0:00:02]} 41. Kf2 {[%emt 0:30:51]} Ra3 {[%emt 0:07:37]} 42. h4 {[%emt 0:00:00]} Rd6 {[%emt 0:02:25]} 43. Rd1 {[%emt 0:00:00]} Kf8 {[%emt 0:04:36]} 44. Rd2 {[%emt 0:00:00]} Rd7 {[%emt 0:01:23]} 45. Kg2 {[%emt 0:00:00]} Re7 {[%emt 0:03:27]} 46. Kh2 {[%emt 0:00:00]} Ree3 {[%emt 0:00:55]} 47. Rg2 {[%emt 0:00:00]} Ke7 {[%emt 0:01:40]} 48. Kh3 {[%emt 0:00:00]} Rac3 {[%emt 0:00:50]} 49. Kh2 {[%emt 0:00:00]} Kf6 {[%emt 0:00:58]} 50. Kh3 {[%emt 0:00:00]} Re1 {[%emt 0:02:01]} 51. Kh2 {[%emt 0:00:00]} Rec1 {[%emt 0:03:30]} 52. Rb2 {[%emt 0:00:00]} R3c2+ {[%emt 0:01:15]} 53. Rxc2 {[%emt 0:00:00]} Rxc2+ {[%emt 0:00:10]} 54. Kh3 {[%emt 0:00:00]} Ke7 {[%emt 0:02:15]} 55. Bf3 {[%emt 0:00:00]} Rxc4 {[%emt 0:00:38]} 56. Be2 {[%emt 0:00:00]} Rc2 {[%emt 0:00:53]} 57. Bd3 {[%emt 0:00:00]} Rb2 {[%emt 0:00:21]} 58. Bc4 {[%emt 0:00:00]} Rb4 {[%emt 0:03:55]} 59. Bd3 {[%emt 0:00:00]} Kd6 {[%emt 0:00:33]} 60. Be2 {[%emt 0:00:00]} Kc5 {[%emt 0:00:52]} 61. f5 {[%emt 0:00:00]} Kd4 {[%emt 0:00:40]} 62. fxg6 {[%emt 0:00:00]} fxg6 {[%emt 0:00:02]} 63. Bf1 {[%emt 0:00:00]} Ke3 {[%emt 0:00:23]} 64. Kh2 {[%emt 0:00:00]} Rb2+ {[%emt 0:00:29]} 65. Kh3 {[%emt 0:00:00]} Kf2 {[%emt 0:00:47]} 66. Bc4 {[%emt 0:00:00]} Kg1 {[%emt 0:00:17]} 67. g4 {[%emt 0:00:00]} Rc2 {[%emt 0:00:54]} 68. gxh5 {[%emt 0:00:17]} gxh5 {[%emt 0:00:42]} 0-1

[Event "FIDE Zonal 2.5-W 2019"]
[Site "Montevideo"]
[Date "2019.04.16"]
[Round "5.5"]
[White "Meza, Anahi"]
[Black "Nejanky, Maisa"]
[Result "0-1"]
[ECO "A52"]
[WhiteElo "2073"]
[BlackElo "2000"]
[Annotator "NA"]
[PlyCount "72"]
[EventDate "2019.04.13"]
[EventType "swiss"]
[EventCountry "URU"]
[SourceTitle "playchess.com"]
[Source "ChessBase"]
[SourceQuality "1"]
[TimeControl "40/5400+30:1800+30"]

1. d4 {[%emt 0:00:00]} Nf6 {[%emt 0:00:00]} 2. c4 {[%emt 0:00:00]} e5 3. dxe5 {[%emt 0:00:18]} Ng4 {[%emt 0:00:00]} 4. Nf3 Bc5 {[%emt 0:02:27]} 5. e3 {[%emt 0:01:38]} Nc6 {[%emt 0:12:23]} 6. Nc3 Ngxe5 7. Nxe5 {[%emt 0:23:06]} Nxe5 {[%emt 0:00:37]} 8. Be2 {[%emt 0:03:15]} O-O {[%emt 0:16:56]} 9. O-O {[%emt 0:15:16]} Re8 {[%emt 0:40:11]} 10. f4 {[%emt 0:03:08]} Nc6 {[%emt 0:10:06]} 11. f5 {[%emt 0:04:52]} a5 {[%emt 0:09:33]} 12. f6 Re6 13. Nd5 {[%emt 0:10:02]} g6 {[%emt 0:03:07]} 14. Bg4 {[%emt 0:07:41]} Re8 {[%emt 0:00:38]} 15. Qf3 {[%emt 0:03:47]} Ra6 {[%emt 0:00:55]} 16. Qg3 {[%emt 0:05:14]} Ne5 {[%emt 0:00:20]} 17. Kh1 {[%emt 0:02:08]} Bf8 {[%emt 0:00:37]} 18. e4 {[%emt 0:05:13]} Nxg4 {[%emt 0:00:25]} 19. Qxg4 {[%emt 0:00:02]} Rae6 {[%emt 0:00:06]} 20. Bg5 {[%emt 0:03:32]} Rxe4 {[%emt 0:01:07]} 21. Ne7+ {[%emt 0:01:53]} Qxe7 {[%emt 0:00:10]} 22. fxe7 {[%emt 0:01:31]} Rxg4 {[%emt 0:00:09]} 23. exf8=Q+ Kxf8 {[%emt 0:00:10]} 24. Bf4 {[%emt 0:05:08]} Re2 {[%emt 0:01:16]} 25. g3 {[%emt 0:04:00]} b6 {[%emt 0:00:37]} 26. Rfe1 {[%emt 0:00:10]} Bb7+ {[%emt 0:00:31]} 27. Kg1 {[%emt 0:00:01]} Rg2+ {[%emt 0:00:11]} 28. Kf1 {[%emt 0:00:01]} Rxf4+ {[%emt 0:00:11]} 29. gxf4 {[%emt 0:00:15]} Rxb2 {[%emt 0:01:05]} 30. Re2 {[%emt 0:01:37]} Rxe2 {[%emt 0:00:14]} 31. Kxe2 {[%emt 0:00:01]} Ba6 {[%emt 0:00:06]} 32. Kd3 {[%emt 0:01:35]} d5 {[%emt 0:00:09]} 33. Rc1 {[%emt 0:00:35]} Bxc4+ {[%emt 0:00:28]} 34. Kd4 {[%emt 0:00:02]} c5+ {[%emt 0:00:14]} 35. Ke5 {[%emt 0:00:05]} Ke7 {[%emt 0:00:15]} 36. a4 {[%emt 0:00:47]} f6# {Kd4} 0-1

[Event "FIDE Zonal 2.5-W 2019"]
[Site "Montevideo"]
[Date "2019.04.16"]
[Round "5.6"]
[White "Podesta, Sofia"]
[Black "Malan, Lucia"]
[Result "1/2-1/2"]
[ECO "D03"]
[WhiteElo "1417"]
[BlackElo "1877"]
[Annotator "NA"]
[PlyCount "125"]
[EventDate "2019.04.13"]
[EventType "swiss"]
[EventCountry "URU"]
[SourceTitle "playchess.com"]
[Source "ChessBase"]
[SourceQuality "1"]
[TimeControl "40/5400+30:1800+30"]

1. d4 {[%emt 0:00:00]} d5 {[%emt 0:00:00]} 2. Nf3 {[%emt 0:00:00]} Nf6 {[%emt 0:00:00]} 3. Bg5 {[%emt 0:00:00]} e6 {[%emt 0:01:24]} 4. e3 Be7 {[%emt 0:01:07]} 5. Bd3 {[%emt 0:01:02]} O-O {[%emt 0:02:18]} 6. O-O {[%emt 0:00:22]} c5 {[%emt 0:06:35]} 7. c3 {[%emt 0:00:17]} c4 8. Bc2 Nc6 {[%emt 0:00:51]} 9. Nbd2 {[%emt 0:01:18]} b5 {[%emt 0:06:46]} 10. Qe2 Re8 {[%emt 0:11:33]} 11. Ne5 {[%emt 0:02:35]} Nxe5 {[%emt 0:02:06]} 12. dxe5 {[%emt 0:00:16]} Nd7 13. Bxe7 {[%emt 0:00:11]} Qxe7 {[%emt 0:00:49]} 14. f4 {[%emt 0:00:32]} Bb7 {[%emt 0:02:57]} 15. Qh5 {[%emt 0:01:57]} g6 {[%emt 0:02:44]} 16. Qh6 {[%emt 0:01:15]} Qf8 {[%emt 0:00:29]} 17. Qh4 {[%emt 0:01:55]} f6 18. exf6 {[%emt 0:05:56]} Qxf6 {[%emt 0:02:01]} 19. Qg4 {[%emt 0:02:30]} Qg7 {[%emt 0:04:00]} 20. h4 {[%emt 0:00:35]} Re7 {[%emt 0:05:29]} 21. Nf3 {[%emt 0:04:46]} e5 22. Ng5 {[%emt 0:12:45]} Nf6 {[%emt 0:07:22]} 23. Qg3 Nh5 {[%emt 0:04:34]} 24. Qg4 {[%emt 0:01:02]} exf4 {[%emt 0:02:12]} 25. exf4 {[%emt 0:00:39]} Rae8 {[%emt 0:03:05]} 26. f5 Nf6 {[%emt 0:08:39]} 27. Qd4 {[%emt 0:07:38]} gxf5 {[%emt 0:05:11]} 28. Bxf5 {[%emt 0:00:20]} h6 29. Nf3 {[%emt 0:18:45]} Ne4 {[%emt 0:05:23]} 30. Qxg7+ {[%emt 0:01:18]} Rxg7 {[%emt 0:00:07]} 31. Nd4 {[%emt 0:01:10]} Ng3 {[%emt 0:07:47]} 32. Be6+ {[%emt 0:00:46]} Kh7 {[%emt 0:02:05]} 33. Rf6 {[%emt 0:03:02]} Ne4 {[%emt 0:02:35]} 34. Bf5+ {[%emt 0:01:55]} Kg8 {[%emt 0:01:00]} 35. Rxh6 {[%emt 0:00:44]} Bc8 {[%emt 0:03:03]} 36. Bxc8 {[%emt 0:00:52]} Rxc8 {[%emt 0:00:04]} 37. Rf1 {[%emt 0:00:25]} Ng3 {[%emt 0:02:12]} 38. Rff6 {[%emt 0:00:47]} Re8 {[%emt 0:01:03]} 39. Re6 {[%emt 0:00:16]} Rf8 {[%emt 0:00:52]} 40. Rhf6 {[%emt 0:00:15]} Rb8 {[%emt 0:00:56]} 41. Rg6 {[%emt 0:30:54]} Ne4 {[%emt 0:02:27]} 42. Rxg7+ {[%emt 0:00:00]} Kxg7 {[%emt 0:00:05]} 43. Re5 {[%emt 0:00:00]} b4 {[%emt 0:02:33]} 44. Rxd5 {[%emt 0:00:00]} bxc3 {[%emt 0:00:12]} 45. bxc3 {[%emt 0:00:00]} Nxc3 {[%emt 0:00:31]} 46. Rc5 {[%emt 0:00:00]} Nxa2 {[%emt 0:00:15]} 47. Rxc4 {[%emt 0:00:00]} Rb4 {[%emt 0:02:18]} 48. Rc7+ {[%emt 0:00:00]} Kf6 {[%emt 0:00:28]} 49. Rxa7 {[%emt 0:00:00]} Rxd4 {[%emt 0:00:04]} 50. Rxa2 {[%emt 0:00:00]} Rxh4 {[%emt 0:00:03]} 51. Ra5 {[%emt 0:00:00]} Kg6 {[%emt 0:00:53]} 52. g3 {[%emt 0:00:00]} Rb4 {[%emt 0:00:13]} 53. Kh2 {[%emt 0:00:00]} Rd4 {[%emt 0:02:26]} 54. Kh3 {[%emt 0:00:00]} Rc4 {[%emt 0:00:25]} 55. g4 {[%emt 0:00:00]} Rb4 {[%emt 0:01:04]} 56. Kh4 {[%emt 0:00:00]} Rb6 {[%emt 0:00:13]} 57. Ra8 {[%emt 0:00:00]} Kh6 {[%emt 0:01:26]} 58. g5+ {[%emt 0:00:00]} Kg6 {[%emt 0:00:34]} 59. Rg8+ {[%emt 0:00:00]} Kh7 {[%emt 0:00:18]} 60. Re8 {[%emt 0:00:00]} Kg6 {[%emt 0:00:06]} 61. Re5 {[%emt 0:00:00]} Rb4+ {[%emt 0:00:23]} 62. Kg3 {[%emt 0:00:00]} Rb3+ {[%emt 0:00:12]} 63. Kf2 {[%emt 0:00:00]} 1/2-1/2

[Event "FIDE Zonal 2.5-W 2019"]
[Site "Montevideo"]
[Date "2019.04.16"]
[Round "5.7"]
[White "Reyes Jara, Paula"]
[Black "Silva Rosas, Natalia"]
[Result "1-0"]
[ECO "B41"]
[WhiteElo "1926"]
[BlackElo "1809"]
[Annotator "NA"]
[PlyCount "94"]
[EventDate "2019.04.13"]
[EventType "swiss"]
[EventCountry "URU"]
[SourceTitle "playchess.com"]
[Source "ChessBase"]
[SourceQuality "1"]
[TimeControl "40/5400+30:1800+30"]

1. e4 {[%emt 0:04:19]} c5 {[%emt 0:00:00]} 2. Nf3 {[%emt 0:01:45]} e6 {[%emt 0:00:00]} 3. d4 cxd4 {[%emt 0:00:00]} 4. Nxd4 {[%emt 0:00:37]} a6 {[%emt 0:00:00]} 5. Be3 {[%emt 0:05:55]} Qc7 {[%emt 0:01:11]} 6. c4 {[%emt 0:01:25]} Nf6 {[%emt 0:05:24]} 7. Bd3 {[%emt 0:01:05]} d6 {[%emt 0:01:50]} 8. O-O {[%emt 0:03:56]} Nbd7 {[%emt 0:03:57]} 9. Nd2 {[%emt 0:00:42]} Ne5 {[%emt 0:02:59]} 10. Be2 {[%emt 0:03:24]} h5 {[%emt 0:03:39]} 11. h3 {[%emt 0:03:34]} Bd7 {[%emt 0:04:54]} 12. Rc1 {[%emt 0:15:51]} Be7 {[%emt 0:06:57]} 13. b4 {[%emt 0:06:16]} Rc8 {[%emt 0:09:26]} 14. a3 {[%emt 0:04:31]} b6 {[%emt 0:04:40]} 15. f4 {[%emt 0:04:39]} Nc6 {[%emt 0:16:22]} 16. N4b3 {[%emt 0:01:41]} e5 {[%emt 0:00:30]} 17. Qe1 {[%emt 0:04:23]} Rb8 18. Qg3 {[%emt 0:01:09]} h4 {[%emt 0:05:02]} 19. Qf2 {[%emt 0:05:21]} Bc8 {[%emt 0:08:32]} 20. Rfd1 Nh5 21. c5 {[%emt 0:08:51]} dxc5 {[%emt 0:02:28]} 22. bxc5 {[%emt 0:02:06]} b5 {[%emt 0:00:20]} 23. f5 {[%emt 0:03:53]} Ng3 {[%emt 0:02:22]} 24. Bd3 {[%emt 0:03:07]} a5 {[%emt 0:01:10]} 25. Nf3 {[%emt 0:00:33]} a4 {[%emt 0:00:41]} 26. Nbd2 {[%emt 0:01:11]} Ba6 {[%emt 0:02:14]} 27. Nf1 {[%emt 0:01:06]} Nxf1 {[%emt 0:01:44]} 28. Qxf1 {[%emt 0:00:15]} Qa7 {[%emt 0:01:38]} 29. Rd2 {[%emt 0:02:54]} Rb7 {[%emt 0:02:59]} 30. Rb2 {[%emt 0:00:18]} Qb8 {[%emt 0:00:15]} 31. Rcb1 {[%emt 0:00:25]} Na7 {[%emt 0:01:48]} 32. Qe1 {[%emt 0:00:48]} Qc7 {[%emt 0:00:58]} 33. Qc3 {[%emt 0:00:20]} f6 {[%emt 0:01:56]} 34. Bf2 {[%emt 0:01:12]} b4 {[%emt 0:01:18]} 35. axb4 {[%emt 0:00:50]} Bxd3 {[%emt 0:00:31]} 36. Qxd3 {[%emt 0:00:05]} Nb5 {[%emt 0:00:48]} 37. Nxh4 {[%emt 0:03:00]} a3 {[%emt 0:01:54]} 38. Ra2 {[%emt 0:00:10]} O-O {[%emt 0:05:28]} 39. Ng6 {[%emt 0:03:01]} Rd8 {[%emt 0:01:03]} 40. Qb3+ {[%emt 0:02:08]} Kh7 {[%emt 0:00:19]} 41. Qg3 {[%emt 0:30:29]} Qc6 {[%emt 0:31:25]} 42. Qh4+ {[%emt 0:03:13]} Kg8 {[%emt 0:00:01]} 43. Rb3 {[%emt 0:00:00]} Qd7 {[%emt 0:00:00]} 44. Rg3 {[%emt 0:00:00]} Qd1+ {[%emt 0:00:00]} 45. Kh2 {[%emt 0:00:00]} Qb1 {[%emt 0:00:00]} 46. Qh8+ {[%emt 0:00:00]} Kf7 {[%emt 0:00:00]} 47. Nxe5+ {[%emt 0:00:00]} fxe5 {[%emt 0:00:00]} 1-0

[Event "FIDE Zonal 2.5-W 2019"]
[Site "Montevideo"]
[Date "2019.04.16"]
[Round "6.6"]
[White "Malan, Lucia"]
[Black "Reyes Jara, Paula"]
[Result "1-0"]
[ECO "C84"]
[WhiteElo "1877"]
[BlackElo "1926"]
[Annotator "NA RC"]
[PlyCount "55"]
[EventDate "2019.04.13"]
[EventType "swiss"]
[EventCountry "URU"]
[SourceTitle "playchess.com"]
[Source "ChessBase"]
[SourceQuality "1"]
[TimeControl "40/5400+30:1800+30"]

{[%evp 8,45,24,21,32767,13,32767,32767,32767,32767,32767,32767,32767,32767,182,195,227,32767,260,231,272,225,260,239,302,349,306,370,475,32767,32767,304,32767,349,32767,32767,32767,32767,463,459]} 1. e4 {[%emt 0:00:00]} e5 {[%emt 0:02:32]} 2. Nf3 {[%emt 0:00:00]} Nc6 {[%emt 0:00:05]} 3. Bb5 {[%emt 0:00:00]} a6 {[%emt 0:00:29]} 4. Ba4 {[%emt 0:00:00]} Nf6 {[%emt 0:00:11]} 5. O-O {[%emt 0:00:17]} Be7 {[%emt 0:00:36]} 6. d4 {[%emt 0:00:15]} b5 {[%emt 0:02:36]} 7. Bb3 {[%emt 0:03:49]} Nxd4 {[%emt 0:01:01] C84: Closed Ruy Lopez: Unusual White 6th moves} (7... exd4 8. e5 Ne4 9. Bd5 Nc5 10. Nxd4 Bb7 11. Nf5 Bf8 12. Nc3 g6 13. Nh6 Bxh6 14. Bxh6 Ne6 15. Ne4 Qh4 16. Nf6+ Ke7 17. Bxe6 Nxe5 18. Bd5 Kxf6 19. Bxb7 {1-0 (32) Grischuk,A (2737)-Nepomniachtchi,I (2767) Doha 2016}) 8. Bxf7+ {[%emt 0:02:24]} Kxf7 {[%emt 0:04:23]} 9. Nxe5+ {[%emt 0:00:21]} Kf8 {[%emt 0:00:30]} 10. Qxd4 {[%emt 0:06:00]} Qe8 $146 {[%emt 0:03:06]} ({Predecessor:} 10... Bb7 $16 {was necessary.} 11. Nc3 b4 12. Nd5 c5 13. Qc4 Bd6 14. f4 Nxd5 15. exd5 {1-0 (30) Aulin Jansson,J (2181)-Odegaard,P (1958) Asker 2015}) 11. Nd3 {[%emt 0:04:06]} Qg6 {[%emt 0:05:17]} 12. e5 Ng4 {[%emt 0:13:32]} (12... Bb7 $16 13. Nf4 Qe4) 13. Nc3 {[%emt 0:08:19]} Bb7 {[%emt 0:23:59]} 14. f3 {[%emt 0:04:43]} ({Not} 14. Qxd7 Nxh2 15. Nf4 Nf3+ 16. Kh1 Nxe5 $11) 14... Nh6 {[%emt 0:02:09]} 15. Bxh6 {[%emt 0:00:37]} gxh6 {[%emt 0:01:15]} 16. Qxd7 {[%emt 0:03:02]} Rg8 {[%emt 0:00:47]} 17. Nf4 {[%emt 0:04:40]} Qb6+ {[%emt 0:08:37]} 18. Kh1 {[%emt 0:01:16]} Bc8 {[%emt 0:00:37]} 19. Qxe7+ {[%emt 0:04:43]} Kxe7 {[%emt 0:00:33]} 20. Ncd5+ {[%emt 0:00:06]} Kf7 {[%emt 0:00:50]} 21. Nxb6 {[%emt 0:00:07]} cxb6 {[%emt 0:00:04]} 22. Rad1 {[%emt 0:00:21]} Rg5 {[%emt 0:03:50]} 23. Rfe1 $18 {[%emt 0:02:09]} Bf5 {[%emt 0:01:13]} 24. e6+ {[%emt 0:00:50]} Ke8 {[%emt 0:01:37]} 25. Nd5 {[%emt 0:01:47]} Rc8 {[%emt 0:01:11]} 26. e7 {[%emt 0:01:06]} Rxc2 {[%emt 0:05:09]} 27. Nf6+ {[%emt 0:00:20]} Kf7 {[%emt 0:00:06]} 28. e8=Q+ {[%emt 0:00:07]} 1-0

[Event "FIDE Zonal 2.5-W 2019"]
[Site "Montevideo"]
[Date "2019.04.16"]
[Round "6.7"]
[White "Silva Rosas, Natalia"]
[Black "Podesta, Sofia"]
[Result "1-0"]
[ECO "C00"]
[WhiteElo "1809"]
[BlackElo "1417"]
[Annotator "NA RC"]
[PlyCount "111"]
[EventDate "2019.04.13"]
[EventType "swiss"]
[EventCountry "URU"]
[SourceTitle "playchess.com"]
[Source "ChessBase"]
[SourceQuality "1"]
[TimeControl "40/5400+30:1800+30"]

1. e4 {[%emt 0:00:00]} e6 {[%emt 0:05:31]} 2. d3 {[%emt 0:00:00]} d5 {[%emt 0:00:12]} 3. Nd2 {[%emt 0:00:00]} Nc6 {[%emt 0:01:10]} 4. Ngf3 {[%emt 0:00:04]} Bd6 {[%emt 0:01:03]} 5. g3 {[%emt 0:08:54]} Nf6 {[%emt 0:03:07]} 6. Qe2 {[%emt 0:00:30] C00: French: Unusual White 2nd moves} (6. Bg2 O-O 7. O-O Re8 8. Re1 dxe4 9. dxe4 e5 10. c3 Be6 11. Qc2 Bf8 12. Nf1 h6 13. Ne3 g6 14. Rd1 Qc8 15. Nd5 Nxd5 16. exd5 {½-½ (38) Nunes,G (1594)-Aquino,A (1920) Sao Paulo 2018}) 6... dxe4 {[%emt 0:00:30]} 7. dxe4 {[%emt 0:01:30]} e5 $146 {[%emt 0:00:40]} ({Predecessor:} 7... Nd7 8. Bg2 O-O 9. O-O b6 10. e5 Be7 11. Rd1 Bb7 12. Ne4 Qe8 {½-½ (41) Alonso Sanchez,V-Valdecantos Jimenez,C Zaragoza 2004}) 8. Nc4 {[%emt 0:01:18]} O-O {[%emt 0:00:30]} 9. Nxd6 {[%emt 0:00:30]} Qxd6 {[%emt 0:00:30]} 10. Bg2 {[%emt 0:00:30]} Bg4 {[%emt 0:00:30]} 11. c3 {[%emt 0:00:30]} Rad8 {[%emt 0:00:26]} 12. h3 {[%emt 0:03:33]} Be6 {[%emt 0:06:05]} 13. Bg5 {[%emt 0:02:37]} Bd7 {[%emt 0:10:14]} 14. Rd1 {[%emt 0:09:13]} Qe7 {[%emt 0:00:50]} 15. Qc2 {[%emt 0:00:30]} h6 {[%emt 0:00:30]} 16. Be3 {[%emt 0:00:39]} Be6 {[%emt 0:00:54]} 17. O-O {[%emt 0:01:40]} Bc4 {[%emt 0:00:30]} 18. Rfe1 {[%emt 0:08:54]} Rxd1 {[%emt 0:02:12]} 19. Qxd1 {[%emt 0:00:30]} Nxe4 {[%emt 0:00:30]} 20. Bxh6 {[%emt 0:00:55]} Nxc3 {[%emt 0:00:51]} 21. bxc3 {[%emt 0:04:37]} gxh6 {[%emt 0:03:36]} 22. Qb1 {[%emt 0:05:27]} Qe6 {[%emt 0:01:34]} 23. Nd4 {[%emt 0:00:30]} Nxd4 {[%emt 0:00:57]} 24. cxd4 {[%emt 0:02:09]} b6 {[%emt 0:05:36]} 25. Rxe5 {[%emt 0:00:30]} Qd6 {[%emt 0:02:15]} 26. Qf5 {[%emt 0:04:26]} Bxa2 {[%emt 0:00:08]} 27. Be4 {[%emt 0:01:09]} Qg6 {[%emt 0:00:30]} 28. Qf4 {[%emt 0:01:11]} Qg7 {[%emt 0:00:58]} 29. Rh5 {[%emt 0:03:44]} f5 {[%emt 0:02:04]} 30. Bxf5 {[%emt 0:00:42]} Bb1 {[%emt 0:01:28]} 31. Be6+ {[%emt 0:02:37]} Kh7 {[%emt 0:00:30]} 32. Qe3 {[%emt 0:00:30]} Bg6 {[%emt 0:00:30]} 33. Re5 {[%emt 0:00:30]} Qf6 {[%emt 0:00:30]} 34. Bd5 {[%emt 0:00:30]} Bf7 {[%emt 0:00:30]} 35. Bg2 {[%emt 0:00:30]} Bg6 {[%emt 0:00:30]} 36. h4 {[%emt 0:00:30]} h5 {[%emt 0:00:30]} 37. d5 {[%emt 0:00:30]} a5 {[%emt 0:00:30]} 38. Re7+ {[%emt 0:00:30]} Rf7 {[%emt 0:00:30]} 39. Re6 {[%emt 0:19:33]} Qa1+ {[%emt 0:07:19] [#]} 40. Kh2 $1 {[%emt 0:19:45]} Qb1 {[%emt 0:01:41]} 41. Qc3 $11 {[%emt 0:33:24]} ({Better is} 41. Be4 $18 Qxe4 42. Rxe4 Bxe4 43. Qxe4+ Kh6 44. Kg2) 41... a4 $2 {[%emt 0:32:27]} (41... Qc2 $11 {and Black stays safe.} 42. Qxc2 Bxc2) 42. d6 {[%emt 0:13:35]} cxd6 {[%emt 0:00:44]} 43. Rxd6 {[%emt 0:00:15]} Qb3 {[%emt 0:00:36]} 44. Qxb3 {[%emt 0:01:04]} axb3 {[%emt 0:00:08]} 45. Rxb6 {[%emt 0:00:46]} Bc2 {[%emt 0:00:37]} 46. Kg1 {[%emt 0:00:45]} Rd7 {[%emt 0:00:45]} 47. Bf3 {[%emt 0:00:00]} Rd1+ {[%emt 0:00:00]} 48. Bxd1 {[%emt 0:00:00]} Bxd1 {[%emt 0:00:00]} 49. Kf1 {[%emt 0:00:00]} Kg7 {[%emt 0:00:00]} 50. Ke1 {[%emt 0:00:00]} Bc2 {[%emt 0:00:00]} 51. Kd2 {[%emt 0:00:00]} Kh7 {[%emt 0:00:00]} 52. Ke3 {[%emt 0:00:00]} Kg7 {[%emt 0:00:00]} 53. Kf4 {[%emt 0:00:00]} Bd1 {[%emt 0:00:00]} 54. Kg5 {[%emt 0:00:00]} Kf7 {[%emt 0:00:00]} 55. f4 {[%emt 0:00:00]} Ke7 {[%emt 0:00:00]} 56. f5 {[%emt 0:00:00]} 1-0

[Event "FIDE Zonal 2.5-W 2019"]
[Site "Montevideo"]
[Date "2019.04.17"]
[Round "7.4"]
[White "Amura, Claudia"]
[Black "Brizzi, Milagros Tatiana"]
[Result "0-1"]
[ECO "D12"]
[WhiteElo "2260"]
[BlackElo "2126"]
[Annotator "RC"]
[PlyCount "110"]
[EventDate "2019.04.13"]
[EventType "swiss"]
[EventCountry "URU"]
[SourceTitle "playchess.com"]
[Source "ChessBase"]
[SourceQuality "1"]
[TimeControl "40/5400+30:1800+30"]

1. d4 {[%emt 0:00:00]} d5 {[%emt 0:00:00]} 2. c4 {[%emt 0:00:00]} c6 {[%emt 0:00:04]} 3. Nf3 {[%emt 0:00:00]} Nf6 {[%emt 0:00:08]} 4. e3 {[%emt 0:00:00]} Bf5 {[%emt 0:00:13]} 5. Nc3 {[%emt 0:00:07]} e6 {[%emt 0:00:52]} 6. Nh4 {[%emt 0:00:05]} Bg6 {[%emt 0:00:24]} 7. Qb3 {[%emt 0:00:25]} Qc7 {[%emt 0:01:56]} 8. Nxg6 {[%emt 0:06:13]} hxg6 {[%emt 0:00:09]} 9. g3 {[%emt 0:00:12]} Nbd7 {[%emt 0:02:19]} 10. Bg2 {[%emt 0:00:04]} Be7 {[%emt 0:06:07]} 11. e4 {[%emt 0:08:35]} dxe4 {[%emt 0:12:10]} 12. Nxe4 {[%emt 0:01:44]} Nxe4 {[%emt 0:01:16]} 13. Bxe4 {[%emt 0:00:05]} e5 {[%emt 0:02:42]} 14. Qc3 {[%emt 0:20:40]} exd4 {[%emt 0:11:14]} 15. Qxd4 {[%emt 0:00:48]} Bf6 {[%emt 0:00:24]} 16. Qe3 {[%emt 0:02:11]} O-O {[%emt 0:01:25]} 17. O-O {[%emt 0:03:06]} Rfe8 {[%emt 0:00:43]} 18. Qf3 {[%emt 0:04:04]} Qe5 {[%emt 0:04:39]} 19. Bc2 {[%emt 0:01:57]} Nc5 {[%emt 0:11:55]} 20. Rb1 Qe6 {[%emt 0:08:07]} 21. Bb3 {[%emt 0:17:46]} Rad8 {[%emt 0:07:52]} 22. Qf4 {[%emt 0:08:57]} Nd3 {[%emt 0:08:50]} 23. Qf3 {[%emt 0:03:12]} Ne1 {[%emt 0:03:24]} 24. Qe3 {[%emt 0:04:13]} Qf5 {[%emt 0:01:17]} 25. Rxe1 {[%emt 0:01:50]} Qxb1 {[%emt 0:02:47]} 26. Qxe8+ {[%emt 0:00:04]} Rxe8 {[%emt 0:00:06]} 27. Rxe8+ {[%emt 0:00:03]} Kh7 {[%emt 0:00:05]} 28. Re1 {[%emt 0:00:12]} Bxb2 {[%emt 0:00:25]} 29. Bd2 {[%emt 0:00:06]} Qf5 {[%emt 0:01:22]} 30. Be3 {[%emt 0:00:40]} c5 {[%emt 0:00:33]} 31. Rd1 {[%emt 0:00:18]} b6 {[%emt 0:01:02]} 32. h4 {[%emt 0:00:17]} Bc3 {[%emt 0:03:22]} 33. Rd5 {[%emt 0:00:35]} Qb1+ {[%emt 0:01:31]} 34. Rd1 {[%emt 0:00:06]} Qb2 {[%emt 0:00:34]} 35. Kf1 {[%emt 0:00:11]} Bd4 {[%emt 0:02:20]} 36. Bd2 {[%emt 0:03:45]} a6 {[%emt 0:01:22]} 37. Ke2 {[%emt 0:00:29]} Kg8 {[%emt 0:00:50]} 38. Rc1 {[%emt 0:00:36]} Bxf2 {[%emt 0:01:27]} 39. Rc3 {[%emt 0:01:04]} Bg1 {[%emt 0:01:41]} 40. g4 {[%emt 0:00:15]} Bh2 {[%emt 0:00:42]} 41. Rf3 {[%emt 0:33:56]} Be5 {[%emt 0:03:10]} 42. h5 {[%emt 0:00:00]} g5 {[%emt 0:02:56]} 43. Rd3 {[%emt 0:00:00]} f6 {[%emt 0:01:41]} 44. Kd1 {[%emt 0:00:00]} Qb1+ {[%emt 0:01:04]} 45. Ke2 {[%emt 0:00:00]} Qg1 {[%emt 0:03:35]} 46. Rd8+ {[%emt 0:00:00]} Kf7 {[%emt 0:00:06]} 47. Ba4 {[%emt 0:00:00]} Qxg4+ {[%emt 0:01:06]} 48. Kd3 {[%emt 0:00:00]} b5 {[%emt 0:00:49]} 49. Bb3 {[%emt 0:00:00]} Ke7 {[%emt 0:02:59]} 50. Rd5 {[%emt 0:00:00]} Qf5+ {[%emt 0:00:28]} 51. Ke3 {[%emt 0:00:00]} g4 {[%emt 0:05:12]} 52. Ba5 {[%emt 0:00:00]} Bd4+ {[%emt 0:03:46]} 53. Kd2 {[%emt 0:00:00]} Qf2+ {[%emt 0:00:43]} 54. Kc1 {[%emt 0:00:00]} Qb2+ {[%emt 0:00:57]} 55. Kd1 {[%emt 0:00:00]} g3 {[%emt 0:00:15]} 0-1